Cogmind - Beta 14 @@@ ROGUE MODE // 2024.09.28 @ 12:49:31 Player: star Result: Self-destructed Performance ------------- Evolutions (1) 500 Regions Visited (4) 800 Robots Destroyed (13) 65 Value Destroyed (303) 303 Prototype IDs (1) 20 Alien Tech Used (0) 0 Bonus (84) 84 TOTAL SCORE: 1772 Bonus ------- Follower Combat Kills 117 Friendly Fire -33 Cogmind --------- Core Integrity 97/400 Matter 300/300 Energy 100/100 System Corruption 4% Temperature Cool (0) Movement Core (350) Ox6 Location -9/Mines Parts ------- > --- POWER (1) -------- (None) > --- PROPULSION (2) --- (None) > --- UTILITY (4) ------ Large Storage Unit > --- WEAPON (2) ------- (None) > --- INVENTORY (15) --- Ion Engine Light Ion Engine Improved Ion Engine Wheel Small Storage Unit Medium Matter Pod (100) ECM Suite Beam Rifle Particle Gun Light Assault Rifle Light Assault Rifle Mini Grenade Launcher Peak State ------------ > --- POWER ------------ Light Angular Momentum Engine > --- PROPULSION ------- Carbon-fiber Leg > --- UTILITY ---------- Heat Sink Disposable Heat Sink Large Storage Unit Phase Shifter > --- WEAPON ----------- Improved Medium Laser Improved Medium Laser > --- INVENTORY -------- Ion Engine Light Ion Engine Improved Ion Engine Wheel Small Storage Unit Medium Matter Pod ECM Suite Beam Rifle Particle Gun Light Assault Rifle Light Assault Rifle Mini Grenade Launcher [Rating: 24] Favorites ----------- Power Light Ion Engine Engine Light Ion Engine Propulsion Wheel Leg Carbon-fiber Leg Wheel Wheel Utility Large Storage Unit Device ECM Suite Storage Large Storage Unit Protection Core Shielding Weapon Improved Medium Laser Energy Gun Improved Medium Laser Ballistic Gun Assault Rifle Build | -11 -10 -10 -9 -9 ------- Run | Yrd Mat Min Mat Min Slots Evolved 2 | . . . 2 . Power . | . . . . . Propulsion . | . . . . . Utility 2 | . . . 2 . Weapon . | . . . . . Parts Attached 22 | 6 2 1 7 6 Power 5 | 1 . . 1 3 Engine 5 | 1 . . 1 3 Core . | . . . . . Reactor . | . . . . . Propulsion 3 | 2 . . . 1 Treads . | . . . . . Leg 1 | . . . . 1 Wheel 2 | 2 . . . . Hover . | . . . . . Flight . | . . . . . Utility 7 | 1 2 . 2 2 Device 4 | . 1 . 2 1 Storage 2 | 1 1 . . . Processor . | . . . . . Hackware . | . . . . . Protection 1 | . . . . 1 Artifact . | . . . . . Weapon 7 | 2 . 1 4 . Energy Gun 6 | 1 . 1 4 . Energy Cannon . | . . . . . Ballistic Gun 1 | 1 . . . . Ballistic Cannon . | . . . . . Launcher . | . . . . . Special Weapon . | . . . . . Impact Weapon . | . . . . . Slashing Weapon . | . . . . . Piercing Weapon . | . . . . . Special Melee Weapon . | . . . . . Unidentified Prototypes 1 | . . . 1 . Parts Lost 11 | . . . 2 9 Power 2 | . . . 1 1 Propulsion 3 | . . . . 3 Utility 3 | . . . . 3 Weapon 3 | . . . 1 2 Highest Loss Streak 9 | . . . 2 9 To Critical Strikes . | . . . . . Average Slot Usage (%) 91 | . 93 100 89 87 Engine 9 | . 14 14 5 4 Wheel 23 | . 28 28 22 17 Device 19 | . 7 14 28 26 Storage 12 | . 14 14 11 11 Protection 1 | . . . . 3 Energy Gun 18 | . 14 15 22 20 Ballistic Gun 5 | . 14 12 . . Peak Build Rating 24 | 6 7 8 14 24 Average Rating 9 | 4 6 7 10 15 On Entrance 7 | . 6 7 8 14 Naked Turns . | . . . . . Heaviest Build 38 | 12 29 30 33 38 Greatest Support 20 | 20 20 20 20 20 Greatest Overweight (x) 7 | . 1 1 1 7 Average Overweight (x) . | . . 1 1 1 Largest Inventory Capacity 15 | 8 15 15 15 15 Average Capacity 13 | 7 10 15 15 15 Most Carried 12 | . 4 6 9 12 Average Carried 5 | . 2 4 6 10 Final Capacity 15 | 8 15 15 15 15 Final Carried 12 | . 4 6 9 12 Class Distribution -------------------- 100% | Mutant Dominant Class ---------------- Mutant | -10/Materials Mutant | -10/Mines Mutant | -9/Materials Mutant | -9/Mines Resources | -11 -10 -10 -9 -9 ----------- Run | Yrd Mat Min Mat Min Matter Collected 501 | 260 50 101 60 30 Remotely . | . . . . . Salvage Created 472 | . 50 80 298 44 Parts 31 | . 3 6 18 4 Haulers Intercepted 2 | . . . 2 . Recyclers Shooed 1 | . . . 1 . Parts Field Recycled . | . . . . . Retrieved Matter . | . . . . . Parts Self-Destructed . | . . . . . Prevented . | . . . . . Kills | -11 -10 -10 -9 -9 ------- Run | Yrd Mat Min Mat Min Combat Hostiles Destroyed 12 | . 1 4 5 2 Guns 8 | . 1 1 4 2 AOE 3 | . . 3 . . Classes Destroyed 5 | . 1 1 2 1 Hauler 2 | . . . 2 . Swarmer 4 | . . 3 1 . Grunt 6 | . 1 1 3 1 Sentry 1 | . . . 1 . Assembled 1 | . . . . 1 Best Kill Streak 4 | . 1 3 4 1 Combat Bots Only 4 | . 1 3 4 1 Max Kills in Single Turn 3 | . 1 3 1 1 Gunslinging . | . . . . . Exploded 3 | . . 3 . . Melee . | . . . . . Uniques/NPCs Destroyed . | . . . . . Combat | -11 -10 -10 -9 -9 -------- Run | Yrd Mat Min Mat Min Hostile Shots Fired 75 | . 5 3 28 39 Missed 18 | . 1 1 8 8 Damage Taken 1060 | . 44 24 238 754 Core 303 | . . . 45 258 Absorbed by Shields . | . . . . . Redirected to Shielding 17 | . . . . 17 Core Remaining (%) 100 | 100 . 100 . . Volleys Fired 33 | . 2 5 17 9 Largest 2 | . 2 2 2 2 Hottest 121 | . 60 60 121 112 Shots Fired 66 | . 4 10 34 18 Gun 66 | . 4 10 34 18 Cannon . | . . . . . Launcher . | . . . . . Special . | . . . . . Kinetic 7 | . 2 5 . . Thermal 46 | . . . 28 18 Explosive . | . . . . . Electromagnetic 13 | . 2 5 6 . Robot Hit Streak 12 | . 3 2 12 3 Robot Miss Streak 3 | . . 3 2 3 Penetration Max . | . . . . . Secondary Targets . | . . . . . Shots Hit Robots 40 | . 3 4 24 9 Core Hits 19 | . 2 4 8 5 Critical Kills . | . . . . . Critical Parts Destroyed . | . . . . . Critical Strikes 1 | . . . 1 . Burn 1 | . . . 1 . Melee Attacks . | . . . . . Impact . | . . . . . Slashing . | . . . . . Piercing . | . . . . . Sneak Attacks . | . . . . . Combat Hostiles . | . . . . . Follow-up Attacks . | . . . . . Damage Inflicted 725 | . 39 155 379 152 Guns 632 | . 39 62 379 152 Cannons . | . . . . . Explosions 93 | . . 93 . . Melee . | . . . . . Ramming . | . . . . . Kinetic 38 | . 13 25 . . Thermal 578 | . . 93 333 152 Explosive . | . . . . . Electromagnetic 109 | . 26 37 46 . Impact . | . . . . . Slashing . | . . . . . Piercing . | . . . . . Highest Corruption 4 | . . . . 4 Average Corruption 3 | . . . . 3 Corruption Purged . | . . . . . Corruption Blocked . | . . . . . Effects 3 | . . . . 3 Message Errors 2 | . . . . 2 Matter Fused 1 | . . . . 1 Overload Shots . | . . . . . Overflow Damage 18 | . . 18 . . Projectiles . | . . . . . Explosions 18 | . . 18 . . Melee . | . . . . . Knockbacks . | . . . . . Impact . | . . . . . Kinetic . | . . . . . Secondary . | . . . . . Self-Inflicted Damage . | . . . . . Shots . | . . . . . Rammed . | . . . . . Targets Rammed . | . . . . . Kicked . | . . . . . Crushed . | . . . . . Highest Temperature 159 | . 6 15 159 146 Average Temperature 54 | . 6 10 61 58 Received Heat Transfer 150 | . 24 15 99 12 Siege Activations . | . . . . . Robots Corrupted . | . . . . . Combat Hostiles . | . . . . . Parts Fried . | . . . . . Impact Corruptions . | . . . . . Robots Melted 1 | . . . 1 . Combat Hostiles 1 | . . . 1 . Parts Melted 3 | . . . 3 . Heat Transferred 1321 | . . 100 888 333 Parts Sabotaged . | . . . . . Parts Stolen . | . . . . . Parts Stripped . | . . . . . Power Chain Reactions 1 | . . 1 . . Alert | -11 -10 -10 -9 -9 ------- Run | Yrd Mat Min Mat Min Peak Influence 293 | . 45 158 293 167 Initial 114 | . . 17 61 114 Average 110 | . 24 82 219 132 Maximum Alert Level 1 | . . . 1 . Low Security (%) 83 | 100 100 100 33 100 Level 1 16 | . . . 66 . Level 2 . | . . . . . Level 3 . | . . . . . Level 4 . | . . . . . Level 5 . | . . . . . High Security . | . . . . . Max Security . | . . . . . Squads Dispatched 2 | . 2 . . . Investigation . | . . . . . Extermination . | . . . . . Reinforcement 2 | . 2 . . . Assault . | . . . . . Garrison . | . . . . . Intercept . | . . . . . Searches Triggered . | . . . . . Construction Impeded . | . . . . . Haulers Reinforced . | . . . . . Active Scanning Responses . | . . . . . Cargo Convoy Interrupts . | . . . . . Stealth | -11 -10 -10 -9 -9 --------- Run | Yrd Mat Min Mat Min Distress Signals . | . . . . . Communications Jammed . | . . . . . Distress Signals . | . . . . . Times Spotted 42 | . 7 5 12 18 Peak Tracking Total 9 | . 5 3 3 9 Tactical Retreats 3 | . 1 . . 2 Traps | -11 -10 -10 -9 -9 ------- Run | Yrd Mat Min Mat Min Traps Triggered . | . . . . . Indirectly . | . . . . . Trap Hack Attempts . | . . . . . Triggered . | . . . . . Disarmed . | . . . . . Reprogrammed . | . . . . . Reused . | . . . . . Traps Extracted . | . . . . . Installed . | . . . . . Triggered . | . . . . . Machines | -11 -10 -10 -9 -9 ---------- Run | Yrd Mat Min Mat Min Machines Disabled 1 | . . . 1 . Max in Single Turn 1 | . . . 1 . Machines Repaired . | . . . . . Machines Dismantled . | . . . . . Machines Sabotaged . | . . . . . Overloaded Fab Kills . | . . . . . Hacking | -11 -10 -10 -9 -9 --------- Run | Yrd Mat Min Mat Min Machines Accessed 1 | . 1 . . . Terminals 1 | . 1 . . . Fabricators . | . . . . . Repair Stations . | . . . . . Recycling Units . | . . . . . Scanalyzers . | . . . . . Garrison Access . | . . . . . Total Hacks 2 | . 2 . . . Successful . | . . . . . Failed 2 | . 2 . . . Catastrophic . | . . . . . Database Lockouts . | . . . . . Manual . | . . . . . Terminals 2 | . 2 . . . Fabricators . | . . . . . Repair Stations . | . . . . . Recycling Units . | . . . . . Scanalyzers . | . . . . . Garrison Access . | . . . . . Terminal Hacks . | . . . . . Fabricator Hacks . | . . . . . Repair Station Hacks . | . . . . . Recycling Unit Hacks . | . . . . . Scanalyzer . | . . . . . Garrison Access Hacks . | . . . . . Unauthorized Hacks . | . . . . . Terminals . | . . . . . Fabricators . | . . . . . Repair Stations . | . . . . . Recycling Units . | . . . . . Scanalyzers . | . . . . . Garrison Access . | . . . . . Data Cores Recovered . | . . . . . Used . | . . . . . Hacking Detections 1 | . 1 . . . Full Trace Events . | . . . . . Feedback Events . | . . . . . Feedback Blocked . | . . . . . Robot Schematics Acquired . | . . . . . Robots Built . | . . . . . Authchips . | . . . . . Time . | . . . . . Total Robot Build Rating . | . . . . . Part Schematics Acquired . | . . . . . Parts Built . | . . . . . Authchips . | . . . . . Time . | . . . . . Total Part Build Rating . | . . . . . Parts Repaired . | . . . . . Time . | . . . . . Parts Recycled . | . . . . . Recycled Matter . | . . . . . Retrieved Matter . | . . . . . Retrieved Components . | . . . . . Parts Scanalyzed . | . . . . . Part Schematics Acquired . | . . . . . Parts Damaged . | . . . . . Bothacking | -11 -10 -10 -9 -9 ------------ Run | Yrd Mat Min Mat Min Used RIF Installer . | . . . . . Robots Hacked . | . . . . . Non-combat . | . . . . . Combat . | . . . . . Robot Hacks Applied . | . . . . . Relay Couplers Released . | . . . . . Fabnet Peak Effective % . | . . . . . Robots Rewired . | . . . . . Allies Hacked . | . . . . . Hacks Repelled . | . . . . . Allies | -11 -10 -10 -9 -9 -------- Run | Yrd Mat Min Mat Min Total Allies 1 | . . 1 . . Largest Group 1 | . . 1 1 1 Highest-Rated Group 31 | . . 31 31 31 Highest-Rated Ally 31 | . . 31 31 31 Total Orders . | . . . . . Ally Attacks 26 | . . 2 16 8 Total Damage 294 | . . 43 210 41 Kills 6 | . . 1 4 1 Allies Corrupted . | . . . . . Allies Melted . | . . . . . Intel | -11 -10 -10 -9 -9 ------- Run | Yrd Mat Min Mat Min Robot Analysis Total . | . . . . . Derelict Logs Recovered . | . . . . . Drone Launches . | . . . . . Drone Recoveries . | . . . . . Exploration | -11 -10 -10 -9 -9 ------------- Run | Yrd Mat Min Mat Min Turns Passed 701 | 44 180 108 172 197 Spaces Moved 579 | 43 188 93 111 144 Core 3 | 2 . . . 1 Treads . | . . . . . Legs 10 | . . . . 10 Wheels 566 | 41 188 93 111 133 Hover . | . . . . . Flight . | . . . . . Fastest Speed 50 | 50 80 95 95 95 Average Speed 94 | 78 85 95 95 109 Slowest Speed 400 | 80 95 95 95 400 Overloaded Moves . | . . . . . Propulsion Burnouts . | . . . . . Robots Hopped . | . . . . . Cave-ins Triggered . | . . . . . Exploration Rate (%) 25 | 2 49 24 19 32 Regions Visited 4 Branch Regions 2 Pre-discovered Areas 1 | . . 1 . . Known Exits Taken . | . . . . . Unknown Exits Taken 4 | 1 1 1 1 . Scrap Searched . | . . . . . Spaces Dug . | . . . . . Terrain Destroyed 3 | . . 3 . . Melee . | . . . . . Projectile . | . . . . . AOE 3 | . . 3 . . Terrain Rammed . | . . . . . Walls Destroyed . | . . . . . Machines Disabled . | . . . . . Actions | -11 -10 -10 -9 -9 --------- Run | Yrd Mat Min Mat Min Total 655 | 49 202 102 140 162 Wait 17 | 1 8 2 4 2 Move 575 | 42 187 92 110 144 Hop . | . . . . . Pick Up 8 | . 3 2 2 1 Fast Attach 10 | 6 1 . 1 2 Attach 2 | . . . 2 . Detach . | . . . . . Swap 10 | . 1 1 4 4 Drop . | . . . . . Fire 33 | . 2 5 17 9 Melee . | . . . . . Ram . | . . . . . Kick . | . . . . . Crush . | . . . . . Escape Stasis . | . . . . . Rewire . | . . . . . Trap . | . . . . . Miscellaneous . | . . . . . Route ------- -11/Scrapyard -10/Materials (discovered 2 exits: [*Mat] / [*Min]) -10/Mines -9/Materials -9/Mines History --------- Turn | Location | Event 11 | -11/Scrapyard | Discovered new exit (range 15) 45 | -11/Scrapyard | Entered Materials 136 | -10/Materials | Discovered new exit (range 16) 219 | -10/Materials | Discovered new exit (range 7) 225 | -10/Materials | Entered Mines 253 | -10/Mines | Discovered new exit (range 6) 268 | -10/Mines | Escorted by a lone wolf Derelict 288 | -10/Mines | Learned location of Storage (-8) 316 | -10/Mines | Build established: Mutant 333 | -10/Mines | Entered Materials 333 | -9/Materials | Accompanied by 1 ally 333 | -9/Materials | Evolved 2 slots: Utility x2 469 | -9/Materials | Discovered new exit (range 15) 505 | -9/Materials | Entered Mines 505 | -9/Mines | Accompanied by 1 ally 637 | -9/Mines | Assembled infested the area 642 | -9/Mines | Assisted by a Guerilla fighting off Assembled 700 | -9/Mines | Core integrity fell below 50% 702 | -9/Mines | Self-destructed Last Messages --------------- 00678_ Wheel destroyed. 00682_ Acquired Phase Shifter. 00683_ Phase Shifter destroyed. 00683_ System corrupted by crushing effect (+1). 00683_ as-81980 destroyed. 00683_ as-18970 destroyed. 00685_ as-19973 destroyed. 00685_ as-79505 destroyed. 00685_ as-08619 destroyed. 00687_ The unstable cave ceiling collapses. 00690_ as-37572 destroyed. 00691_ The unstable cave ceiling collapses. 00695_ System corrupted: Matter fused (-6). 00695_ The unstable cave ceiling collapses. 00695_ Lgt. Angular Momentum Engine destroyed. 00697_ Imp. Medium Laser destroyed. 00697_ Disposable Heat Sink destroyed. 00697_ Carbon-fiber Leg destroyed. 00697_ Heat Sink destroyed. 00699_ Imp. Medium Laser destroyed. Map ----- +----------------------------------------------------+ | | | | | | | | | | | | | ?????????????????????????????????????????????????? | | ?#####???????????????????????????????????????????? | | ## ######???????######?????????????????????????? | | # ##????### ##????????????????????????? | | #???## #????????????????????????? | | """ ##??# ##???????????????????????? | | """ ##?# """ #???????????????????????? | | ##### """ ### """ #???????????????????????? | | ????## """ #???????????????????????? | | ???##### #???????????????????????? | | #### ### ### ### #???????????????????????? | | # ### ###?# #?#### #????###????????????????? | | #?# ##### #????# #???# ##???????????????? | | ### #????# #??# #???????????????? | | # ######## #???##= ### ##??????????????? | | # ## ###???# #???#!% a ???????????????? | | # #### ##??# #??## ?????????????????? | | ##?# #### #??# #??????????????????? | | #?# #??# ##??#####???????????? | | ## #####??# @ ### #???????????? | | ### ##??????# #???????????? | | ##?# #??????# # ##????????? | | #??# ????#### % d a #????????? | | #??## #### s # #????????? | | ######## d a ????? | | ## ##??## # # ##???????? | | ?# #???# ###### # #????????? | | ?# #???## ##### #????##### [#????????? | | ?# #????####???# #?????????## *%#???????? | | ## #???????????# #???????????### =%"??????? | | # #?########### #??????????????? "#??????? | | #?#== %= %! #???????????????? ?????????? | | ### ############???????????????????????????? | | # #??????????????????????????????????????? | | ## #####??????????????????????????????????????? | | ?## ##??????????????????????????????????????????? | | ??####???????????????????????????????????????????? | | ?????????????????????????????????????????????????? | | ?????????????????????????????????????????????????? | | ?????????????????????????????????????????????????? | | ?????????????????????????????????????????????????? | | ?????????????????????????????????????????????????? | | ?????????????????????????????????????????????????? | | ?????????????????????????????????????????????????? | +----------------------------------------------------+ Best States ------------- Heat Dissipation 38 Coolant Potential 50 Energy Generation 18 Energy Capacity 265 Matter Stores 300 Matter Capacity 300 Sight Range 16 Terrain Scan Density 10 ECM Strength 1 Core Shielding 20 Evasion (%) 44 Item Schematics ----------------- None Robot Schematics ------------------ None Fabricated ------------ Nothing Alien Tech Used ----------------- None Achievements -------------- None Challenges ------------ None Game ------ Seed FireSubdwellerBiocell Manual? 0 Play Time 00:09:36 Cumulative 103.8 hours Start 2024.09.27 @ 23:15:45 End 2024.09.28 @ 12:49:31 Sessions 3 Manual Loads 0 Difficulty Rogue Special Mode None Game No. 179 Rogue 179 Adventurer 0 Explorer 0 Win Type - Total 1 Types 1/0/0/0/0/0/0/0/0 Lore% 49 Gallery% 53 Achievement% 43 Wizard Run 0 Options --------- Layout 0 ASCII 0 Keyboard 1 Movement Numpad Keybinds 0 Fullscreen 2 Font 18/SmallcapsGlow Map View 76x50 Zoom Use 0% Tactical HUD 1 Map Filters NONE Filters NONE Steam 1 RUN: 95ffa71b-ead9-44f7-a6b4-2103c9875909